bitfinex/quotes_ETHUSD_20220111
["timestamp","ask_amount","ask_price","bid_price","bid_amount"]
[1641943518817,1.98029802,3239.7,3239.5,2.63476654]
[1641943519017,1.98029802,3239.7,3239.5,2.63078757]
[1641943519216,1.98029802,3239.7,3239.6,0.00341054]
[1641943519815,1.98029802,3239.7,3239.6,2.63419811]
[1641943520021,0.82630902,3239.7,3239.6,2.63419811]
[1641943521159,0.82630902,3239.7,3239.6,0.00341054]
[1641943521360,0.38130902,3239.7,3239.6,0.00341054]
[1641943521561,0.38130902,3239.7,3239.6,1.46044422]
[1641943521760,1.88130902,3239.7,3239.6,4.42726172]
[1641943521960,1.88130902,3239.7,3239.6,8.44123179]
[1641943522160,0.80601798,3240.2,3239.9,0.77169]
[1641943522362,0.80601798,3240.2,3239.9,1.54338]
[1641943522562,0.80601798,3240.2,3240.1,4.91994016]
[1641943522763,0.80601798,3240.2,3240.1,3.5]
[1641943523171,3.1,3240.3,3240.2,5.3]
[1641943523461,0.445,3241.4,3240.2,8.50180254]
[1641943523662,0.445,3241.4,3240.6,1.23571981]
[1641943523663,1.74863709,3241.4,3240.6,1.23571981]
[1641943523906,0.00397896,3240.9,3240.7,4.2977045]
[1641943524207,0.00341054,3240.8,3240.7,4.2977045]
[1641943524405,0.00341054,3240.8,3240.7,5.82041374]
[1641943526513,0.00341054,3240.8,3240.7,3.06570924]
[1641943526712,0.00341054,3240.8,3240.7,5.86870497]
[1641943526914,0.00341054,3240.8,3240.7,5.09718497]
[1641943528667,0.77148,3242.1,3240.7,5.09718497]
[1641943528668,0.445,3242.3,3240.8,5.3]
[1641943528869,0.445,3242.3,3241.7,0.77127]
[1641943529066,0.445,3242.3,3241.3,9.31155372]
[1641943529263,0.445,3242.7,3241.3,6.34599994]
[1641943529667,1.16080681,3242.5,3242.1,0.7711608]
[1641943529866,1.16080681,3242.5,3242.2,0.77118]
[1641943530064,0.00909478,3242.4,3242.2,1.54237]
[1641943530464,0.00852635,3242.3,3242.2,0.77119]
[1641943532107,0.90966996,3242.5,3242.2,0.77119]
[1641943532309,0.90966996,3242.5,3242.1,2.3135108]
[1641943532508,0.90966996,3242.5,3241.8,4.6275224]
[1641943532908,0.90966996,3242.5,3241.9,0.00227369]
[1641943533308,1.49881431,3242.3,3241.9,0.00227369]
[1641943533516,1.66096992,3242.0,3241.9,0.00227369]
[1641943536161,0.27948138,3242.0,3241.9,0.00227369]
[1641943536759,0.27948138,3242.0,3241.9,2.80227369]
[1641943537160,0.27948138,3242.0,3241.9,5.55763181]
[1641943537360,0.27948138,3242.0,3241.9,0.00227369]
[1641943541610,0.27948138,3242.0,3241.9,2.40227369]
[1641943542666,0.27948138,3242.0,3241.9,5.16848572]
[1641943542856,0.27948138,3242.0,3241.9,2.40227369]
[1641943543056,0.27948138,3242.0,3241.9,5.20645401]
[1641943543258,0.27948138,3242.0,3241.9,5.22913966]
[1641943544461,0.22948138,3242.0,3241.9,5.22913966]
[1641943545765,0.22948138,3242.0,3241.9,0.00227369]
[1641943546619,0.22948138,3242.0,3241.9,3.20227369]
[1641943547013,0.22948138,3242.0,3241.9,5.98797177]
[1641943548415,0.22948138,3242.0,3241.9,7.52593561]
[1641943550015,0.91341025,3242.8,3241.9,7.52593561]
[1641943550265,0.46841025,3242.8,3242.5,0.7710425]
[1641943550460,0.00170527,3242.6,3242.5,6.7741425]
[1641943550660,0.00170527,3242.6,3242.5,9.7202082]
[1641943550866,0.00170527,3242.6,3242.5,9.3751657]
[1641943551562,0.00170527,3242.6,3242.5,11.7673259]
[1641943552462,0.445,3244.0,3242.6,5.3]
[1641943552665,0.745,3244.0,3243.2,0.77085]
[1641943552962,0.745,3244.0,3243.3,2.79443875]
[1641943552963,0.00511581,3243.5,3243.3,2.79443875]
[1641943553161,0.00511581,3243.5,3243.4,1.34636333]
[1641943553364,0.745,3244.0,3243.4,1.34636333]
[1641943553365,0.445,3244.0,3243.4,2.45591671]
[1641943553762,0.00738951,3243.9,3243.4,2.45591671]
[1641943554007,0.00738951,3243.9,3243.6,0.7708]
[1641943554208,0.445,3244.0,3243.6,0.7708]
[1641943554209,0.00682108,3243.8,3243.6,0.7708]
[1641943554411,0.00682108,3243.8,3243.4,2.88795333]
[1641943554608,0.00625266,3243.7,3243.4,1.34636333]
[1641943555007,0.745,3244.0,3243.4,1.34636333]
[1641943555008,0.00568424,3243.6,3243.4,1.34636333]
[1641943555209,0.00568424,3243.6,3243.2,4.6188]
[1641943555409,0.00511581,3243.5,3243.2,4.6188]
[1641943555810,0.00511581,3243.5,3243.1,1.94302]
[1641943555811,0.00454739,3243.4,3243.1,1.1721]
[1641943556109,0.00397897,3243.3,3243.1,1.1721]
[1641943556514,0.00341054,3243.2,3243.1,4.2721]
[1641943557674,0.00341054,3243.2,3243.1,7.10007785]
[1641943557864,0.00341054,3243.2,3243.1,4.2721]
[1641943558067,0.00341054,3243.2,3243.1,3.1]
[1641943562411,0.00341054,3243.2,3243.1,5.8653302]
[1641943563914,0.00341054,3243.2,3243.1,7.0611302]
[1641943564111,0.00341054,3243.2,3243.1,8.0611302]
[1641943564517,0.445,3244.8,3243.2,5.25]
[1641943564711,0.445,3244.8,3243.9,1.5413]
[1641943564912,0.00852635,3244.7,3244.2,1.16003454]
[1641943565363,0.00795793,3244.6,3244.2,1.16003454]
[1641943565562,0.00795793,3244.6,3244.3,2.7776548]
[1641943565763,0.00738951,3244.5,3244.2,1.16003454]
[1641943566163,1.94601278,3244.8,3244.4,1.53105737]
[1641943566364,1.94601278,3244.8,3244.4,2.30168737]
[1641943566571,0.00852635,3244.7,3244.4,2.30168737]
[1641943566871,0.00795793,3244.6,3244.4,2.30168737]
[1641943567271,0.00738951,3244.5,3244.4,2.30168737]
[1641943569310,0.00738951,3244.5,3244.4,6.25168737]
[1641943569514,0.00738951,3244.5,3244.4,7.02218737]
[1641943569716,0.00738951,3244.5,3244.4,6.25168737]
[1641943571717,0.00738951,3244.5,3244.4,9.20485911]
[1641943571917,0.00738951,3244.5,3244.4,6.25168737]
[1641943572115,0.00738951,3244.5,3244.4,11.74570911]
[1641943572318,0.00738951,3244.5,3244.4,8.79253737]
[1641943572763,0.00738951,3244.5,3244.4,11.41977146]
[1641943573865,0.00738951,3244.5,3244.4,14.78553473]
[1641943574771,0.00738951,3244.5,3244.4,15.84433473]
[1641943575966,0.00738951,3244.5,3244.4,15.92137473]
[1641943576168,0.00738951,3244.5,3244.4,16.22137473]
[1641943576407,0.00738951,3244.5,3244.4,16.52137473]
[1641943576811,0.00738951,3244.5,3244.4,16.22137473]
[1641943577211,0.33043311,3245.2,3244.7,0.7705]
[1641943577413,0.33043311,3245.2,3244.4,5.77633146]
[1641943577617,0.00341054,3245.1,3244.4,5.77633146]
[1641943577911,0.00284212,3245.0,3244.4,5.77633146]
[1641943578311,0.00227369,3244.9,3244.4,5.77633146]
[1641943578512,0.00227369,3244.9,3244.5,1.0]
[1641943578713,0.00170527,3244.8,3244.5,1.0]
[1641943579114,1.22515848,3245.0,3244.5,3.62723409]
[1641943579115,0.00113684,3244.7,3244.5,3.62723409]
[1641943579513,0.00227369,3244.9,3244.5,3.62723409]
[1641943579714,0.00227369,3244.9,3244.6,0.77055]
[1641943579918,0.00170527,3244.8,3244.6,0.77055]
[1641943580359,0.00113684,3244.7,3244.6,0.77055]
[1641943581762,0.00113684,3244.7,3244.6,6.04846191]
[1641943581964,0.00113684,3244.7,3244.6,6.05645665]
[1641943582161,0.00113684,3244.7,3244.6,7.05645665]
[1641943582566,0.23156995,3245.2,3244.7,5.25]
[1641943582768,0.23156995,3245.2,3244.8,2.87092542]
[1641943582965,0.0022737,3245.1,3244.9,4.18459988]
[1641943583367,0.00170528,3245.0,3244.9,4.18459988]
[1641943583563,0.00170528,3245.0,3244.9,7.04283804]
[1641943583764,0.00170528,3245.0,3244.9,4.18459988]
[1641943584015,0.00170528,3245.0,3244.9,4.95498988]
[1641943584215,0.00170528,3245.0,3244.9,7.72116434]
[1641943584819,0.00170528,3245.0,3244.7,3.08157]
[1641943585018,0.00170528,3245.0,3244.6,1.1528]
[1641943585217,0.44613685,3244.9,3244.6,1.1528]
[1641943585421,0.44613685,3244.9,3244.5,4.9899]
[1641943587021,0.44613685,3244.9,3244.6,0.77057]
[1641943592124,0.44613685,3244.9,3244.8,2.72349379]
[1641943592425,0.00113685,3244.9,3244.8,2.72349379]
[1641943592625,0.00113685,3244.9,3244.8,5.65823246]
[1641943594323,0.00113685,3244.9,3244.8,1.45952404]
[1641943594524,0.00113685,3244.9,3244.7,1.54088]
[1641943594724,0.00113685,3244.9,3244.8,5.39043195]
[1641943595167,0.00113685,3244.9,3244.8,2.62683123]
[1641943596359,0.00113685,3244.9,3244.7,1.54088]
[1641943599620,1.19614068,3244.9,3244.7,1.54088]
[1641943599820,1.19614068,3244.9,3244.6,0.77057]
[1641943601031,0.00113685,3244.9,3244.7,2.62703453]
[1641943601221,0.00113685,3244.9,3244.7,3.39755453]
[1641943601627,0.00113685,3244.9,3244.7,0.77052]
[1641943602864,0.00113685,3244.9,3244.6,0.77057]
[1641943603868,0.00113685,3244.9,3244.7,2.74749298]
[1641943604069,0.00113685,3244.9,3244.7,4.28834298]
[1641943604268,0.00113685,3244.9,3244.8,9.07416969]
[1641943605472,0.00113685,3244.9,3244.8,10.57156633]
[1641943605870,0.00113685,3244.9,3244.8,13.19834246]
[1641943611470,2.150117,3245.7,3244.9,5.2]
[1641943611767,2.150117,3245.7,3245.4,1.5403886]
[1641943611768,0.00397897,3245.6,3245.4,1.5403886]
[1641943611965,0.00397897,3245.6,3245.5,7.48284241]
[1641943612171,0.445,3247.1,3245.7,5.2]
[1641943612367,0.445,3247.5,3245.8,4.12007174]
[1641943612568,0.445,3247.5,3246.9,1.48164098]
[1641943612769,0.01023162,3247.4,3247.0,0.76995]
[1641943613166,0.00966319,3247.3,3247.0,0.76995]
[1641943613567,0.00909477,3247.2,3246.9,2.23224098]
[1641943613769,0.00909477,3247.2,3247.0,1.53978]
[1641943614018,0.00852635,3247.1,3247.0,1.53978]
[1641943616416,0.00852635,3247.1,3246.9,2.25152098]
[1641943616627,0.00852635,3247.1,3246.9,1.48164098]
[1641943616819,0.00795792,3247.0,3246.9,4.93164098]
[1641943617675,0.00795792,3247.0,3246.9,5.93164098]
[1641943617865,0.00795792,3247.0,3246.9,9.09152669]
[1641943618968,0.00795792,3247.0,3246.9,9.39152669]
[1641943619775,0.00795792,3247.0,3246.9,8.09152669]
[1641943620375,0.00795792,3247.0,3246.9,5.93164098]
[1641943620577,0.00795792,3247.0,3246.9,6.23164098]
[1641943621176,0.00795792,3247.0,3246.9,2.48164098]
[1641943623917,0.00795792,3247.0,3246.9,5.13164098]
[1641943624822,0.00795792,3247.0,3246.9,2.48164098]
[1641943625022,0.00795792,3247.0,3246.9,1.48164098]
[1641943625761,0.00795792,3247.0,3246.9,4.38164098]
[1641943626765,0.00795792,3247.0,3246.9,7.19157193]
[1641943628467,0.00795792,3247.0,3246.9,7.96140193]
[1641943628667,0.00795792,3247.0,3246.9,5.15147098]
[1641943628923,0.00795792,3247.0,3246.9,4.38164098]
[1641943629927,0.00795792,3247.0,3246.9,5.38164098]
[1641943630824,0.00795792,3247.0,3246.9,8.1713816]
[1641943632032,0.00795792,3247.0,3246.9,5.38164098]
[1641943632229,0.00795792,3247.0,3246.9,8.15588685]
[1641943633170,0.00795792,3247.0,3246.7,8.9113582]
[1641943633171,0.00795792,3247.0,3246.7,5.0618]
[1641943633569,1.30351362,3247.3,3246.7,5.0618]
[1641943633570,0.0073895,3246.9,3246.7,5.0618]
[1641943633966,0.0073895,3246.9,3246.6,3.99209]
[1641943633967,1.47495447,3246.8,3246.6,3.99209]
[1641943634168,1.47495447,3246.8,3246.6,0.07699]
[1641943634368,0.00625265,3246.7,3246.6,0.07699]
[1641943634573,0.00625265,3246.7,3246.6,3.02699]
[1641943635171,0.00625265,3246.7,3246.6,0.07699]
[1641943635572,0.00625265,3246.7,3246.6,2.42699]
[1641943637220,0.00625265,3246.7,3246.6,0.07699]
[1641943639621,0.00625265,3246.7,3246.6,2.22699]
[1641943641575,0.00625265,3246.7,3246.6,0.07699]
[1641943642575,0.00625265,3246.7,3246.6,2.62699]
[1641943643776,0.00625265,3246.7,3246.6,2.55]
[1641943644420,0.00625265,3246.7,3246.6,5.33789524]
[1641943645424,0.00625265,3246.7,3246.6,2.55]
[1641943646028,0.00625265,3246.7,3246.6,5.32521913]
[1641943646228,0.00625265,3246.7,3246.6,2.55]
[1641943646428,0.00625265,3246.7,3246.6,4.95]
[1641943647874,0.00625265,3246.7,3246.6,2.55]
[1641943648273,0.00625265,3246.7,3246.5,1.2224]
[1641943648678,0.00568423,3246.6,3246.5,1.2224]
[1641943650880,0.00568423,3246.6,3246.4,0.13819997]
[1641943651280,0.00511581,3246.5,3246.4,0.13819997]
[1641943651518,0.00511581,3246.5,3246.4,3.13819997]
[1641943652822,0.00511581,3246.5,3246.4,3.0]
[1641943656380,0.00511581,3246.5,3246.4,5.2]
[1641943657385,0.00511581,3246.5,3246.4,7.82552581]
[1641943659216,0.00511581,3246.5,3246.4,11.89345764]
[1641943661821,0.00511581,3246.5,3246.4,11.59345764]
[1641943664192,0.00511581,3246.5,3246.4,11.60614635]
[1641943664791,0.00511581,3246.5,3246.4,29.68614635]
[1641943666197,0.00511581,3246.5,3246.4,33.70134729]
[1641943666441,1.581e-05,3246.5,3246.4,34.74634729]
[1641943666633,0.9812301,3247.6,3246.9,0.76965]
[1641943666835,0.9812301,3247.6,3247.1,1.53928]
[1641943667135,0.00568423,3247.5,3247.2,3.67580849]
[1641943667337,0.00568423,3247.5,3247.4,7.17910667]
[1641943667534,0.9812301,3247.6,3247.4,11.74582994]
[1641943667736,0.9812301,3247.6,3247.5,6.68235407]
[1641943667938,0.9812301,3247.6,3247.5,7.68235407]
[1641943668136,0.98748276,3247.6,3247.5,4.18235407]
[1641943668341,0.445,3249.2,3247.6,5.15]
[1641943668541,0.445,3249.6,3248.3,0.7695623]
[1641943668742,0.00795792,3249.0,3248.8,0.7695]
[1641943669136,0.0073895,3248.9,3248.8,0.7695]
[1641943669537,0.0073895,3248.9,3248.8,1.89080464]
[1641943671386,0.0073895,3248.9,3248.8,1.12130464]
[1641943672689,0.0073895,3248.9,3248.5,5.18929]
[1641943673088,0.00682108,3248.8,3248.5,5.18929]
[1641943673495,0.00625265,3248.7,3248.6,0.7695131]
[1641943673690,0.00625265,3248.7,3248.6,2.13020418]
[1641943673932,0.00625265,3248.7,3248.6,1.36069108]
[1641943675821,0.00625265,3248.7,3248.6,1.31069108]
[1641943676223,0.00625265,3248.7,3248.5,3.6503]
[1641943676624,0.00568423,3248.6,3248.5,3.6503]
[1641943677025,0.70068423,3249.6,3248.6,4.2]
[1641943677224,0.70068423,3249.6,3248.7,0.7694896]
[1641943677225,0.45068423,3249.6,3248.7,0.7694896]
[1641943677426,0.00511581,3249.5,3248.7,0.7694896]
[1641943677874,0.00454739,3249.4,3248.7,0.7694896]
[1641943678275,0.00397896,3249.3,3248.7,0.7694896]
[1641943678482,0.00397896,3249.3,3248.9,1.33197394]
[1641943678681,0.00341054,3249.2,3248.9,1.33197394]
[1641943679080,0.00284212,3249.1,3248.9,1.33197394]
[1641943679376,0.00227369,3249.0,3248.9,1.33197394]
[1641943680276,0.00227369,3249.0,3248.7,0.7695]
[1641943680479,0.00227369,3249.0,3248.5,3.6503]
[1641943680676,0.00170527,3248.9,3248.5,3.6503]
[1641943681077,0.00113685,3248.8,3248.5,3.6503]
[1641943681283,0.00113685,3248.8,3248.4,1.1563]
[1641943681536,0.44613685,3248.8,3248.4,1.1563]
[1641943681736,2.95404979,3248.7,3248.4,1.1563]
[1641943681932,0.44613685,3248.8,3248.4,1.1563]
[1641943682334,1.10187512,3248.6,3248.4,1.1563]
[1641943682533,1.10187512,3248.6,3248.2,1.25011146]
[1641943682732,1.10187512,3248.6,3248.1,0.13819997]
[1641943682932,1.10187512,3248.6,3248.3,0.00170527]
[1641943683335,0.44613685,3248.8,3248.3,0.00170527]
[1641943684134,2.91010739,3248.7,3248.3,0.00170527]
[1641943684337,3.67981739,3248.7,3248.3,0.00170527]
[1641943684839,3.70826445,3248.7,3248.3,0.00170527]
[1641943685036,3.67864817,3248.7,3248.3,0.00170527]
[1641943685282,1.33213335,3248.6,3248.3,0.00170527]
[1641943689324,1.33213335,3248.6,3248.3,0.77133527]
[1641943689826,3.1,3248.7,3248.4,0.00113685]
[1641943690224,3.1,3248.7,3248.2,0.77185369]
[1641943690828,3.1,3248.7,3248.2,1.54143849]
[1641943691130,3.1,3248.7,3248.4,0.76958]
[1641943691328,3.1,3248.7,3248.6,1.1352735]
[1641943692128,3.1,3248.7,3248.4,0.76958]
[1641943692772,3.1,3248.7,3248.4,1.5391291]
[1641943693474,3.1,3248.7,3248.5,1.53255203]
[1641943694079,3.1,3248.7,3248.4,1.5391291]
[1641943695281,3.1,3248.7,3248.4,2.3086691]
[1641943695685,3.1,3248.7,3248.5,1.28811014]
[1641943698129,3.1,3248.7,3248.4,2.3086691]
[1641943698332,3.1,3248.7,3248.2,0.00227369]
[1641943699638,3.1,3248.7,3248.5,1.44320198]
[1641943700168,3.1,3248.7,3248.3,0.76961]
[1641943700570,3.1,3248.7,3248.4,0.00113685]
[1641943704841,5.99943892,3248.7,3248.4,0.00113685]
[1641943705034,0.445,3248.6,3248.4,0.00113685]
[1641943705234,1.43629827,3248.4,3248.0,0.00341054]
[1641943705430,2.98189682,3248.3,3248.0,0.00341054]
[1641943705832,1.33549164,3248.1,3248.0,0.00341054]
[1641943706433,1.88129827,3248.4,3247.9,0.00397896]
[1641943706633,1.88129827,3248.4,3247.8,0.00454739]
[1641943707033,0.76983,3248.2,3247.8,0.00454739]
[1641943708283,1.49141423,3247.9,3247.8,0.00454739]
[1641943708685,5.32798841,3247.9,3247.8,0.00454739]
[1641943708882,5.32798841,3247.9,3247.3,7.503]
[1641943708883,5.02798841,3247.9,3247.5,0.00625266]
[1641943709080,5.02798841,3247.9,3247.4,0.00682108]
[1641943709081,5.32798841,3247.9,3247.4,0.00682108]
[1641943709682,1.11593184,3247.5,3247.4,0.00682108]
[1641943710088,0.445,3247.6,3247.4,0.00682108]
[1641943711930,0.77,3247.5,3247.4,0.00682108]
[1641943712129,0.445,3247.6,3247.4,0.00682108]
[1641943712333,1.87449788,3248.2,3247.4,0.00682108]
[1641943712334,0.445,3248.0,3247.4,0.00682108]
[1641943712531,0.445,3248.0,3247.4,2.55951925]
[1641943712733,0.33463788,3248.2,3247.4,2.55951925]
[1641943712929,0.33463788,3248.2,3247.5,0.00625266]
[1641943713131,0.33463788,3248.2,3248.0,1.10113471]
[1641943713329,0.33463788,3248.2,3247.6,1.1822]
[1641943713530,1.24026445,3248.1,3247.6,1.95199]
[1641943714132,1.24026445,3248.1,3247.6,1.1822]
[1641943714330,1.24026445,3248.1,3247.7,1.13519528]
[1641943714830,1.24026445,3248.1,3247.8,0.00454739]
[1641943715472,0.76989,3248.0,3247.8,0.00454739]
[1641943715874,0.76989,3248.0,3247.7,0.00511581]
[1641943717676,3.86989,3248.0,3247.7,0.00511581]
[1641943717894,3.1,3248.0,3247.7,0.00511581]
[1641943720225,3.05,3248.0,3247.7,0.00511581]
[1641943721032,3.81988,3248.0,3247.7,0.00511581]
[1641943721232,4.26488,3248.0,3247.7,0.00511581]
[1641943724982,3.495,3248.0,3247.7,0.00511581]
[1641943726080,0.76991,3247.9,3247.7,0.00511581]
[1641943727227,3.05,3248.0,3247.7,0.00511581]
[1641943732390,3.05,3248.0,3247.7,0.77486581]
[1641943733398,3.05,3248.0,3247.8,2.62429627]
[1641943733788,3.05,3248.0,3247.9,2.40397896]
[1641943734025,3.05,3248.0,3247.9,0.00397896]
[1641943734427,3.05,3248.0,3247.7,0.00511581]
[1641943736124,3.05,3248.0,3247.8,1.47923033]
[1641943736324,3.05,3248.0,3247.8,4.10349016]
[1641943736528,3.05,3248.0,3247.9,4.60397896]
[1641943737128,3.05,3248.0,3247.9,7.22823879]
[1641943738178,3.05,3248.0,3247.9,2.62823879]
[1641943738781,3.05,3248.0,3247.9,0.00397896]
[1641943739489,3.05,3248.0,3247.9,2.6282327]
[1641943740185,3.05,3248.0,3247.9,0.00397896]
[1641943740385,3.05,3248.0,3247.9,2.20397896]
[1641943740983,3.05,3248.0,3247.9,4.8282327]
[1641943742129,3.05,3248.0,3247.9,2.20397896]
[1641943742529,3.05,3248.0,3247.9,0.00397896]
[1641943742731,3.05,3248.0,3247.9,2.6282438]
[1641943742929,3.05,3248.0,3247.9,2.62426484]
[1641943743131,3.05,3248.0,3247.9,2.6282438]
[1641943746489,3.05,3248.0,3247.9,0.00397896]
[1641943746886,3.05,3248.0,3247.7,0.00511581]
[1641943747587,0.445,3247.9,3247.7,0.00511581]
[1641943747788,3.28809847,3247.9,3247.7,0.00511581]
[1641943747986,3.28809847,3247.9,3247.8,2.62433791]
[1641943748388,0.445,3247.9,3247.8,2.62433791]
[1641943748690,0.445,3247.9,3247.7,0.00511581]
[1641943748933,3.3555647,3247.9,3247.7,0.00511581]
[1641943749133,3.64291956,3247.8,3247.7,0.00511581]
[1641943749332,4.08791956,3247.8,3247.7,0.00511581]
[1641943749529,4.08791956,3247.8,3247.4,0.00682108]
[1641943750126,1.31501446,3247.7,3247.4,0.00682108]
[1641943750330,5.17597423,3247.6,3247.4,0.00682108]
[1641943750531,2.31222541,3247.6,3247.4,0.00682108]
[1641943752232,5.171654,3247.6,3247.4,0.00682108]
[1641943752434,2.31222541,3247.6,3247.4,0.00682108]
[1641943752676,3.11652756,3247.6,3247.4,0.00682108]
[1641943753284,6.00799086,3247.6,3247.4,0.00682108]
[1641943753485,3.11652756,3247.6,3247.4,0.00682108]
[1641943753683,5.97374775,3247.6,3247.4,0.00682108]
[1641943753884,5.99709682,3247.6,3247.4,0.00682108]
[1641943754292,3.11652756,3247.6,3247.4,0.00682108]
[1641943759840,2.34644756,3247.6,3247.4,0.00682108]
[1641943760676,2.34644756,3247.6,3247.5,1.0999567]
[1641943761077,2.34644756,3247.6,3247.5,1.10620936]
[1641943763282,2.34644756,3247.6,3247.5,0.00625266]
[1641943763684,2.34644756,3247.6,3247.4,0.00682108]
[1641943765443,2.34644756,3247.6,3247.5,2.62440147]
[1641943765946,2.34644756,3247.6,3247.5,2.63065413]
[1641943768387,2.34644756,3247.6,3247.5,0.00625266]
[1641943768789,2.34644756,3247.6,3247.4,0.00682108]
[1641943773941,1.24930215,3247.6,3247.4,0.00682108]
[1641943774141,0.80430215,3247.6,3247.4,0.77667108]
[1641943774338,0.80430215,3247.6,3247.5,2.90599145]
[1641943774542,0.80430215,3247.6,3247.5,2.91224411]
[1641943775192,0.80430215,3247.6,3247.5,1.1571047]
[1641943775790,0.80430215,3247.6,3247.5,3.78139965]
[1641943784587,0.80430215,3247.6,3247.5,6.5625633]
[1641943785596,0.80430215,3247.6,3247.5,3.78139965]
[1641943785795,0.80430215,3247.6,3247.5,6.52873802]
[1641943785999,0.80430215,3247.6,3247.5,7.52873802]
[1641943788147,0.80430215,3247.6,3247.5,4.78139965]
[1641943788747,0.80430215,3247.6,3247.5,2.63054761]
[1641943794329,1.57427215,3247.6,3247.5,2.63054761]
[1641943794732,0.80430215,3247.6,3247.5,2.63054761]
[1641943802534,0.80430215,3247.6,3247.5,3.82433049]
[1641943803735,0.80430215,3247.6,3247.5,2.63054761]
[1641943804143,0.45369329,3247.6,3247.5,2.63054761]
[1641943807394,0.45369329,3247.6,3247.5,2.62429495]
[1641943808193,0.45369329,3247.6,3247.4,2.62429495]
[1641943808395,0.45369329,3247.6,3247.5,2.45625266]
[1641943808691,0.35369329,3247.6,3247.5,0.00625266]
[1641943809343,1.35719501,3247.6,3247.5,0.00625266]
[1641943809738,1.35719501,3247.6,3247.5,2.63054761]
[1641943811945,1.00350172,3247.6,3247.5,5.41748798]
[1641943812541,1.00350172,3247.6,3247.5,2.63054761]
[1641943832155,1.00350172,3247.6,3247.5,5.322196]
[1641943833355,1.00350172,3247.6,3247.5,5.31192425]
[1641943833556,1.00350172,3247.6,3247.5,5.31070536]
[1641943834961,1.00350172,3247.6,3247.5,2.63054761]
[1641943835182,1.00350172,3247.6,3247.5,5.29709952]
[1641943835587,1.00350172,3247.6,3247.5,5.32225365]
[1641943835987,1.00350172,3247.6,3247.5,5.32209572]
[1641943837590,1.00350172,3247.6,3247.5,2.63054761]
[1641943837892,1.00350172,3247.6,3247.5,5.31234432]
[1641943838090,1.00350172,3247.6,3247.5,5.32235602]
[1641943838295,1.00350172,3247.6,3247.5,5.31610336]
[1641943841255,1.00350172,3247.6,3247.5,2.62429495]
[1641943845495,1.00350172,3247.6,3247.4,2.62429495]
[1641943845695,0.50175086,3247.6,3247.4,2.62429495]
[1641943845899,3.495,3248.0,3247.4,2.62429495]
[1641943846097,0.50175086,3247.5,3247.4,2.62429495]
[1641943846546,0.50175086,3247.5,3247.4,2.63111603]
[1641943847151,0.50175086,3247.5,3247.4,0.00682108]
[1641943847649,0.50175086,3247.5,3247.3,0.00738951]
[1641943847850,0.50175086,3247.5,3247.4,2.62429495]
[1641943848057,0.94675086,3247.5,3247.4,2.62429495]
[1641943848853,0.94675086,3247.5,3247.3,0.00738951]
[1641943849255,0.94675086,3247.5,3246.9,0.0096632]
[1641943849453,0.94675086,3247.5,3246.8,0.01023162]
[1641943849852,1.71678086,3247.5,3246.8,0.01023162]
[1641943850309,1.12409347,3247.0,3246.8,0.01023162]
[1641943850690,0.445,3247.1,3246.8,0.01023162]
[1641943850894,0.445,3247.1,3246.6,0.78132847]
[1641943851294,0.50175086,3246.8,3246.7,0.01080005]
[1641943851496,1.00350172,3246.8,3246.7,0.01080005]
[1641943851693,1.00350172,3246.8,3246.6,0.01136847]
[1641943853095,0.82855241,3246.8,3246.6,0.01136847]
[1641943853297,1.96541366,3246.8,3246.6,0.01136847]
[1641943856455,0.50175086,3246.8,3246.6,0.01136847]
[1641943856653,1.54017,3247.5,3246.6,1.55120847]
[1641943856654,0.32680155,3246.7,3246.6,1.55120847]
[1641943856853,0.82855241,3246.7,3246.6,1.85120847]
[1641943857055,0.82855241,3246.7,3246.6,7.98984]
[1641943857691,0.82855241,3246.7,3246.6,8.75981]
[1641943857897,0.82855241,3246.7,3246.6,9.60669]
[1641943858396,0.82855241,3246.7,3246.6,8.8368]
[1641943858997,0.82855241,3246.7,3246.6,7.98984]
[1641943860300,0.82855241,3246.7,3246.6,6.68984]
[1641943860699,3.92855241,3246.7,3246.6,6.68984]
[1641943861550,3.92855241,3246.7,3246.6,7.68984]
[1641943863250,3.92855241,3246.7,3246.6,1.53984]
[1641943864452,3.92855241,3246.7,3246.6,6.95123804]
[1641943865055,3.92855241,3246.7,3246.6,7.95123804]
[1641943865292,3.92855241,3246.7,3246.6,6.95123804]
[1641943865496,3.92855241,3246.7,3246.6,5.68984]
[1641943866700,3.92855241,3246.7,3246.6,9.55835948]
[1641943867299,3.92855241,3246.7,3246.6,8.31435287]
[1641943868499,3.92855241,3246.7,3246.6,9.40990438]
[1641943869944,3.92855241,3246.7,3246.6,8.31435287]
[1641943870245,3.92855241,3246.7,3246.6,6.77451287]
[1641943870446,3.92855241,3246.7,3246.6,2.62451287]
[1641943872901,3.92855241,3246.7,3246.6,4.92451287]
[1641943873902,3.92855241,3246.7,3246.6,5.92451287]
[1641943874503,3.92855241,3246.7,3246.6,2.62451287]
[1641943878351,3.92855241,3246.7,3246.5,2.62451287]
[1641943878550,3.42680155,3246.7,3246.5,2.62451287]
[1641943878752,3.1,3246.7,3246.5,2.62451287]
[1641943878950,0.82855241,3246.6,3246.5,2.62451287]
[1641943879153,0.82855241,3246.6,3246.4,2.62451287]
[1641943879350,0.2776147,3246.5,3246.4,2.62451287]
[1641943879558,2.3,3246.4,3245.9,3.93725175]
[1641943879753,3.62469808,3246.5,3245.7,4.79763512]
[1641943879754,2.8,3246.2,3245.7,4.79763512]
[1641943879954,0.5639147,3246.5,3245.5,2.32709434]
[1641943879955,6.74708338,3246.1,3245.5,2.32709434]
[1641943880206,0.445,3246.0,3245.8,0.01591586]
[1641943880400,1.5326183,3245.7,3245.5,2.2930102]
[1641943880603,0.445,3245.6,3245.5,2.2930102]
[1641943881003,0.445,3245.6,3245.5,0.00170527]
[1641943881807,1.50792201,3245.3,3245.2,0.00341054]
[1641943882004,2.93382201,3245.3,3245.2,0.00341054]
[1641943882403,1.4259,3245.3,3245.2,0.00341054]
[1641943883204,0.445,3245.3,3244.9,0.00511581]
[1641943883404,0.445,3245.3,3244.7,0.00625266]
[1641943884681,0.50175086,3245.0,3244.7,0.00625266]
[1641943884893,0.82855241,3245.0,3244.7,0.00625266]
[1641943885083,0.82855241,3245.0,3244.8,1.38161275]
[1641943885484,0.82855241,3245.0,3244.9,6.02548581]
[1641943885885,0.82855241,3245.0,3244.9,7.02548581]
[1641943886691,2.60732053,3246.0,3244.9,0.77548581]
[1641943886890,2.96343905,3245.9,3244.9,0.77548581]
[1641943887088,0.445,3245.8,3245.0,0.00454738]
[1641943887716,1.21537,3245.8,3245.0,0.00454738]
[1641943887918,1.21537,3245.8,3245.0,0.77490738]